Workbook

Sheet Concentration
A1: Solutions
A2: ="ใส่หมายเลขข้อที่ต้องการในช่องสีชมพู (ข้อ 1-"&MAX(Problem!A1:A47)&")" -> ใส่หมายเลขข้อที่ต้องการในช่องสีชมพู (ข้อ 1-10)
A3: 1 | B3: =IF(ISNUMBER(ProbNO),HLOOKUP("detail",ProbTab,MATCH(ProbNO,ProbID,0),0)) -> เติม NaCl 5 g ในขวดเชิงปริมาตร และเติมน้ำจนได้สารละลาย 1.5 L และมีความหนาแน่น 1.1 g/mL จงหาความเข้มข้น | I3: Error = | J3: 0.05
A4: Types | B4: Chemicals | C4: MW (g/mol) | D4: Density (g/mL) | E4: mass (g) | F4: Amount (mol) | G4: Volume (mL) | I4: Type | J4: mass (g) | K4: amount (mol) | L4: Volume (ml) | M4: Mass | N4: g | O4: mol | P4: ml | Q4: MW (g/mol) | R4: d (g/ml)
A5: Solute (A) | C5: =IF(ISTEXT(B5),IF(HLOOKUP("MW",ChemTab,MATCH(B5,ChemID,0),0)>0,HLOOKUP("MW",ChemTab,MATCH(B5,ChemID,0),0),""),"") ->  | D5: =IF(ISTEXT(B5),IF(HLOOKUP("density",ChemTab,MATCH(B5,ChemID,0),0)>0,HLOOKUP("density",ChemTab,MATCH(B5,ChemID,0),0),""),"") ->  | I5: Solute | J5: =IF(ISNUMBER(ProbNO),IF(ISNUMBER(HLOOKUP("M1",ProbTab,MATCH(ProbNO,ProbID,0),0)),HLOOKUP("M1",ProbTab,MATCH(ProbNO,ProbID,0),0),"")) -> 5 | K5: =IF(ISNUMBER(ProbNO),IF(ISNUMBER(HLOOKUP("A1",ProbTab,MATCH(ProbNO,ProbID,0),0)),HLOOKUP("A1",ProbTab,MATCH(ProbNO,ProbID,0),0),"")) ->  | L5: =IF(ISNUMBER(ProbNO),IF(ISNUMBER(HLOOKUP("V1",ProbTab,MATCH(ProbNO,ProbID,0),0)),HLOOKUP("V1",ProbTab,MATCH(ProbNO,ProbID,0),0),"")) ->  | M5: =IF(ISNUMBER(J5),J5,IF(AND(ISNUMBER(K5),ISNUMBER(MW_1)),K5*MW_1,IF(AND(ISNUMBER(L5),ISNUMBER(D_1)),L5*D_1,IF(AND(ISNUMBER(J7),ISNUMBER(J6)),J7-J6,"X")))) -> 5 | N5: =IF(ISNUMBER(M5),M5,IF(AND(ISNUMBER(M6),ISNUMBER(M7)),M7-M6,"NA")) -> 5 | O5: =IF(ISNUMBER(K5),K5,IF(AND(ISNUMBER(N5),ISNUMBER(MW_A)),N5/MW_A,"NA")) -> NA | P5: =IF(ISNUMBER(L5),L5,IF(AND(ISNUMBER(N5),ISNUMBER(d_A)),N5/d_A,"NA")) -> NA | Q5: =IF(ISNUMBER(ProbNO),IF(ISNUMBER(HLOOKUP("MW1",ProbTab,MATCH(ProbNO,ProbID,0),0)),HLOOKUP("MW1",ProbTab,MATCH(ProbNO,ProbID,0),0),"")) -> 58.5 | R5: =IF(AND(ISNUMBER(ProbNO),S5<>"x"),IF(ISNUMBER(HLOOKUP("d1",ProbTab,MATCH(ProbNO,ProbID,0),0)),HLOOKUP("d1",ProbTab,MATCH(ProbNO,ProbID,0),0),""),IF(ISNUMBER(D5),D5,"")) -> 
A6: Solvent (B) | C6: =IF(ISTEXT(B6),IF(HLOOKUP("MW",ChemTab,MATCH(B6,ChemID,0),0)>0,HLOOKUP("MW",ChemTab,MATCH(B6,ChemID,0),0),""),"") ->  | D6: =IF(ISTEXT(B6),IF(HLOOKUP("density",ChemTab,MATCH(B6,ChemID,0),0)>0,HLOOKUP("density",ChemTab,MATCH(B6,ChemID,0),0),""),"") ->  | I6: Solvent | J6: =IF(ISNUMBER(ProbNO),IF(ISNUMBER(HLOOKUP("M2",ProbTab,MATCH(ProbNO,ProbID,0),0)),HLOOKUP("M2",ProbTab,MATCH(ProbNO,ProbID,0),0),"")) ->  | K6: =IF(ISNUMBER(ProbNO),IF(ISNUMBER(HLOOKUP("A2",ProbTab,MATCH(ProbNO,ProbID,0),0)),HLOOKUP("A2",ProbTab,MATCH(ProbNO,ProbID,0),0),"")) ->  | L6: =IF(ISNUMBER(ProbNO),IF(ISNUMBER(HLOOKUP("V2",ProbTab,MATCH(ProbNO,ProbID,0),0)),HLOOKUP("V2",ProbTab,MATCH(ProbNO,ProbID,0),0),"")) ->  | M6: =IF(ISNUMBER(J6),J6,IF(AND(ISNUMBER(K6),ISNUMBER(MW_2)),K6*MW_2,IF(AND(ISNUMBER(L6),ISNUMBER(D_2)),L6*D_2,IF(AND(ISNUMBER(J5),ISNUMBER(J7)),J7-J5,"X")))) -> X | N6: =IF(ISNUMBER(M6),M6,IF(AND(ISNUMBER(M7),ISNUMBER(M5)),M7-M5,"NA")) -> 1645 | O6: =IF(ISNUMBER(K6),K6,IF(AND(ISNUMBER(N6),ISNUMBER(MW_B)),N6/MW_B,"NA")) -> NA | P6: =IF(ISNUMBER(L6),L6,IF(AND(ISNUMBER(N6),ISNUMBER(d_B)),N6/d_B,"NA")) -> NA | Q6: =IF(ISNUMBER(ProbNO),IF(ISNUMBER(HLOOKUP("MW2",ProbTab,MATCH(ProbNO,ProbID,0),0)),HLOOKUP("MW2",ProbTab,MATCH(ProbNO,ProbID,0),0),"")) ->  | R6: =IF(AND(ISNUMBER(ProbNO),S6<>"x"),IF(ISNUMBER(HLOOKUP("d2",ProbTab,MATCH(ProbNO,ProbID,0),0)),HLOOKUP("d2",ProbTab,MATCH(ProbNO,ProbID,0),0),""),IF(ISNUMBER(D6),D6,"")) -> 
A7: Solution (C ) | I7: Solution | J7: =IF(ISNUMBER(ProbNO),IF(ISNUMBER(HLOOKUP("M3",ProbTab,MATCH(ProbNO,ProbID,0),0)),HLOOKUP("M3",ProbTab,MATCH(ProbNO,ProbID,0),0),"")) ->  | K7: =IF(ISNUMBER(ProbNO),IF(ISNUMBER(HLOOKUP("A3",ProbTab,MATCH(ProbNO,ProbID,0),0)),HLOOKUP("A3",ProbTab,MATCH(ProbNO,ProbID,0),0),"")) ->  | L7: =IF(ISNUMBER(ProbNO),IF(ISNUMBER(HLOOKUP("V3",ProbTab,MATCH(ProbNO,ProbID,0),0)),HLOOKUP("V3",ProbTab,MATCH(ProbNO,ProbID,0),0),"")) -> 1500 | M7: =IF(ISNUMBER(J7),J7,IF(AND(ISNUMBER(L7),ISNUMBER(D_3)),L7*D_3,IF(AND(ISNUMBER(J5),ISNUMBER(J6)),J5+J6,"X"))) -> 1650 | N7: =IF(ISNUMBER(M7),M7,IF(AND(ISNUMBER(M5),ISNUMBER(M6)),M5+M6,"NA")) -> 1650 | O7: =IF(COUNT(O5:O6)=2,SUM(O5:O6),"NA") -> NA | P7: =IF(ISNUMBER(L7),L7,IF(AND(ISNUMBER(N7),ISNUMBER(d_C)),N7/d_C,"NA")) -> 1500 | R7: =IF(ISNUMBER(ProbNO),IF(ISNUMBER(HLOOKUP("d3",ProbTab,MATCH(ProbNO,ProbID,0),0)),HLOOKUP("d3",ProbTab,MATCH(ProbNO,ProbID,0),0),"")) -> 1.1
D8: ข้อแนะนำ 1 เลือกชนิดสารเคมี หากไม่ระบุ ให้เลือก Any 2 ใส่ข้อมูลจากโจทย์ในช่องสีเหลืองให้ถูกต้อง หากถูกต้องสีเซลจะเปลี่ยน 3 คำนวณหาความเข้มข้นจากข้อมูลที่มีโดยในช่องสีฟ้า 4 ค่าคงที่ที่กำหนดให้แล้ว (ใช้ได้หากมีค่าปรากฏอยู่) ได้แก่ MW_A , MW_B คือ MW ของตัวถูกละลายและตัวทำละลาย d_A, d_B, d_C คือ ความหนาแน่นของตัวถูกละลาย ตัวทำละลาย และสารละลาย
A10: Conc. | B10: Answers | I10: Answers
A11: %W/W= | C11: =IF(AND(ISNUMBER(I11),LEN(B11)>0),IF(ABS(B11-I11)<0.05,"Correct","Wrong"),"") ->  | I11: =IF(AND(ISNUMBER(N5),ISNUMBER(N7)),N5/N7,"NA") -> 0.00303030303
A12: %W/V= | C12: =IF(AND(ISNUMBER(I12),LEN(B12)>0),IF(ABS(B12-I12)<0.05,"Correct","Wrong"),"") ->  | I12: =IF(AND(ISNUMBER(P7),ISNUMBER(N5)),N5/P7,"NA") -> 0.003333333333
A13: %V/V= | I13: =IF(AND(ISNUMBER(P5),ISNUMBER(P7)),P5/P7,"NA") -> NA
A14: M= | I14: =IF(AND(ISNUMBER(O5),ISNUMBER(P7)),O5/P7*1000,"NA") -> NA
A15: m= | I15: =IF(AND(ISNUMBER(O5),ISNUMBER(N6)),O5/N6*1000,"NA") -> NA
A16: XA= | I16: =IF(AND(ISNUMBER(O5),ISNUMBER(O7)),O5/O7,"NA") -> NA
A17: XB= | I17: =IF(AND(ISNUMBER(O6),ISNUMBER(O7)),O6/O7,"NA") -> NA

Sheet Problem
A1: No | B1: Detail | C1: S1 | D1: S2 | E1: D3 | F1: M1 | G1: A1 | H1: V1 | I1: M2 | J1: A2 | K1: V2 | L1: M3 | M1: A3 | N1: V3 | O1: MW1 | P1: D1 | Q1: MW2 | R1: D2
A2: 1 | B2: เติม NaCl 5 g ในขวดเชิงปริมาตร และเติมน้ำจนได้สารละลาย 1.5 L และมีความหนาแน่น 1.1 g/mL จงหาความเข้มข้น | C2: NaCl | D2: H2O | E2: 1.1 | F2: 5 | N2: 1500 | O2: =IF(ISTEXT($C2),IF(ISNUMBER(HLOOKUP("MW",ChemTab,MATCH($C2,ChemID,0),0)),HLOOKUP("MW",ChemTab,MATCH($C2,ChemID,0),0),""),"") -> 58.5 | P2: =IF(ISTEXT($C2),IF(ISNUMBER(HLOOKUP("Density",ChemTab,MATCH($C2,ChemID,0),0)),HLOOKUP("Density",ChemTab,MATCH($C2,ChemID,0),0),""),"") ->  | Q2: =IF(ISTEXT($D2),IF(ISNUMBER(HLOOKUP("MW",ChemTab,MATCH($D2,ChemID,0),0)),HLOOKUP("MW",ChemTab,MATCH($D2,ChemID,0),0),""),"") ->  | R2: =IF(ISTEXT($D2),IF(ISNUMBER(HLOOKUP("Density",ChemTab,MATCH($D2,ChemID,0),0)),HLOOKUP("Density",ChemTab,MATCH($D2,ChemID,0),0),""),"") -> 
A3: 2 | B3: สารละลายประกอบด้วย C2H5OH 20 g ในสารละลาย 500 mL | C3: C2H5OH(l) | D3: Any | F3: 20 | N3: 500 | O3: 46 | P3: 0.785
A4: 3 | B4: สารละลาย NaOH(aq) 30%W/W มีความหนาแน่น 2g/mL | C4: NaOH | D4: H2O(l) | E4: 2 | F4: 30 | L4: 100 | O4: 39.99 | Q4: 18 | R4: 1
A5: 4 | B5: สารละลายประกอบด้วย NaOH 0.5 mol ในน้ำโดยสารละลายที่ได้มีปริมาตร 1.5 L และความหนาแน่น 1.02 g/mL | C5: NaOH | D5: H2O(l) | E5: 1.02 | G5: 0.5 | N5: 1500 | O5: 39.99 | Q5: 18 | R5: 1
A6: 5 | B6: KOH 0.5 mol เติมน้ำ 200 g ได้สารละลายที่มีความหนาแน่น 1.12 g/mL | C6: KOH | D6: H2O(l) | E6: 1.12 | G6: 0.5 | I6: 200 | O6: 56.1 | Q6: 18 | R6: 1
A7: 6 | B7: C2H5OH 1000 mL เติม NaOH ลงไปจนได้สารละลาย 1 kg และสารละลายมีความหนาแน่น 0.98 g/mL | C7: NaOH | D7: C2H5OH(l) | E7: 0.98 | K7: 1000 | L7: 1000 | O7: 39.99 | Q7: 46 | R7: 0.785
A8: 7 | B8: สารละลาย 0.2 M NaOH ใน C2H5OH มีความหนาแน่น 0.85 g/mL | C8: NaOH | D8: C2H5OH(l) | E8: 0.85 | G8: 0.2 | N8: 1000 | O8: 39.99 | Q8: 46 | R8: 0.785
A9: 8 | B9: สารละลาย NaCl(aq) 0.7 molal | C9: NaCl | D9: H2O(l) | G9: 0.7 | I9: 1000 | O9: 58.5 | Q9: 18 | R9: 1
A10: 9 | B10: ผสม C2H5OH 50 mL และ H2O 500 mL ได้สารละลายปริมาตร 525 mL | C10: C2H5OH(l) | D10: H2O(l) | H10: 50 | K10: 500 | N10: 525 | O10: 46 | P10: 0.785 | Q10: 18 | R10: 1
A11: 10 | B11: CaOH 25 g เติม C2H5OH จนได้สารละลายปริมาตร 750 mL ซึ่งหนัก 765 g | C11: CaOH | D11: C2H5OH(l) | F11: 25 | L11: 765 | N11: 750 | O11: 57.08 | Q11: 46 | R11: 0.785

Sheet MW
A1: Chemicals | B1: MW | C1: Density | D1: Tb | E1: Kb | F1: Tf | G1: Kf
A2: Any | H2: a
A3: CH3OCH3(l) | B3: 46 | C3: 0.7193 | D3: 56.2 | E3: 1.67 | F3: –94.8 | H3: l
A4: C2H5OH(l) | B4: 46 | C4: 0.785 | D4: 78.4 | E4: 1.19 | F4: –114.6 | G4: –1.99 | H4: l
A5: CCl3H(l) | B5: 119.5 | C5: 1.483 | D5: 61.2 | E5: 3.88 | F5: –63.5 | G5: –4.90 | H5: l
A6: CCl4(l) | B6: 154 | C6: 1.5867 | D6: 76.8 | E6: 4.88 | F6: –22.8 | G6: –29.8 | H6: l
A7: CH3COOH(l) | B7: 44 | C7: 1.049 | D7: 118.1 | E7: 3.07 | F7: 16.6 | G7: -3.9 | H7: l
A8: H2O(l) | B8: 18 | C8: 1 | D8: 100 | E8: 0.512 | F8: 0 | G8: –1.86 | H8: l
A9: HNO3(l) | B9: =1+14+16*3 -> 63 | H9: l
A10: CaOH | B10: =40.08+16+1 -> 57.08 | H10: s
A11: KCl | B11: =39.1+35.5 -> 74.6 | H11: s
A12: KOH | B12: =39.1+16+1 -> 56.1 | H12: s
A13: NaCl | B13: 58.5 | H13: s
A14: NaOH | B14: =22.99+16+1 -> 39.99 | H14: s
A23: Concentrations | C23: Molarity | D23: %W/W
A24: %W/W= | B24: 0.01 | C24: =IF(ISNUMBER(B24),IF(AND(ISNUMBER(B24),ISNUMBER(MW_1),ISNUMBER(D_3)),B24/MW_1*D_3*1000,"NA"),"") -> 0.188034188 | D24: =IF(ISNUMBER(B24),B24,"") -> 0.01
A25: %W/V= | C25: =IF(ISNUMBER(B25),IF(AND(ISNUMBER(B25),ISNUMBER(MW_1)),B25/MW_1*1000,"NA"),"") ->  | D25: =IF(ISNUMBER(B25),IF(AND(ISNUMBER(D_3)),B25/(D_3),"NA"),"") -> 
A26: %V/V= | C26: =IF(ISNUMBER(B26),IF(AND(ISNUMBER(B26),ISNUMBER(MW_1),ISNUMBER(D_1)),B26/MW_1*D_1*1000,"NA"),"") ->  | D26: =IF(ISNUMBER(B26),IF(AND(ISNUMBER(D_1),ISNUMBER(D_3)),B26*D_1/D_3,"NA"),"") -> 
A27: M= | C27: =IF(ISNUMBER(B27),B27,"") ->  | D27: =IF(ISNUMBER(B27),IF(AND(ISNUMBER(MW_1),ISNUMBER(D_3)),B27*MW_1/(1000*D_3),"NA"),"") -> 
A28: m= | C28: =IF(ISNUMBER(B28),IF(AND(ISNUMBER(B28),ISNUMBER(MW_1),ISNUMBER(D_3)),B28/((1000+B28*MW_1)/D_3)*1000,"NA"),"") ->  | D28: =IF(ISNUMBER(B28),IF(AND(ISNUMBER(MW_1),ISNUMBER(MW_1)),B28*MW_1/(1000+B28*MW_1),"NA"),"") -> 
A29: XA= | C29: =IF(ISNUMBER(B29),IF(AND(ISNUMBER(B29),ISNUMBER(MW_1),ISNUMBER(MW_2),ISNUMBER(D_3)),B29*1000/((B29*MW_1+(1-B29)*MW_2)/D_3),"NA"),"") ->  | D29: =IF(ISNUMBER(B29),IF(AND(ISNUMBER(MW_1),ISNUMBER(MW_2)),B29*MW_1/((1-B29)*MW_2+B29*MW_1),"NA"),"") -> 
B32: Solvent | C32: Boiling Point (°C) | D32: Kb(°C/(mol kg-1)) | E32: Freezing Point (°C) | F32: Kf (°C/(mol kg-1)) | G32: Data source
B33: Aniline | C33: 184.3 | D33: 3.69 | E33: –5.96 | F33: –5.87 | G33: Kb & Kf[1]
B34: Lauric Acid | C34: 298.9 | E34: 44 | F34: –3.9
B35: Acetic acid | C35: 118.1 | D35: 3.07 | E35: 16.6 | F35: –3.90 | G35: Kb[1] Kf[2]
B36: Acetone | C36: 56.2 | D36: 1.67 | E36: –94.8 | G36: Kb[3]
B37: Benzene | C37: 80.1 | D37: 2.65 | E37: 5.5 | F37: –5.12 | G37: Kb & Kf[2]
B38: Bromobenzene | C38: 156 | D38: 6.26
B39: Camphor | C39: 204 | D39: 5.95 | E39: 179 | F39: –40 | G39: Kf[2]
B40: Carbon disulfide | C40: 46.2 | D40: 2.34 | E40: –111.5 | F40: –3.83
B41: Carbon tetrachloride | C41: 76.8 | D41: 4.88 | E41: –22.8 | F41: –29.8 | G41: Kb & Kf[1]
B42: Chloroform | C42: 61.2 | D42: 3.88 | E42: –63.5 | F42: –4.90 | G42: Kb & Kf[1]
B43: Cyclohexane | C43: 80.74 | D43: 2.79 | E43: 6.55 | F43: –20.2
B44: Diethyl ether | C44: 34.5 | D44: 2.16 | E44: –116.2 | F44: –1.79 | G44: Kb & Kf[1]
B45: Ethanol | C45: 78.4 | D45: 1.19 | E45: –114.6 | F45: –1.99 | G45: Kb[2]
B46: Ethylene bromide | C46: 130 | D46: 6.43 | E46: 9.974 | F46: –12.5 | G46: Kb & Kf[1]
B47: Formic acid | C47: 101 | D47: 2.4 | E47: 8 | F47: –2.77 | G47: Kb & Kf[1]
B48: Naphthalene | C48: 217.9 | E48: 80.2 | F48: –6.80
B49: Nitrobenzene | C49: 210.8 | D49: 5.24 | E49: 5.7 | F49: –7.00
B50: Phenol | C50: 181.75 | D50: 3.6 | E50: 43 | F50: –7.27 | G50: Kf[2] Kb[1]
B51: Water | C51: 100 | D51: 0.512 | E51: 0 | F51: –1.86 | G51: Kb & Kf[2]

Sheet Sheet1 (hidden)

Sheet Sheet2
C2: Chemicals | D2: MW | E2: Tf | F2: kf | G2: Tb | H2: kb | I2: density
B3: Solute | C3: Any | D3: =IF(ISTEXT($C3),IF(HLOOKUP(D$2,ChemTab,MATCH($C3,ChemID,0),0)>0,HLOOKUP(D$2,ChemTab,MATCH($C3,ChemID,0),0),""),"") -> 
B4: Solvent | C4: H2O(l) | D4: 18 | F4: –1.86 | G4: 100 | H4: 0.512 | I4: 1
B6: DT(f/b)= | D6: k(f/b)= | F6: dsolvent | G6: 1.5 | P6: density= | Q6: =IF(ISNUMBER(I4),I4,IF(ISNUMBER(G6),G6,"")) -> 1
B7: Solute | E7: Solute | H7: Solution | M7: Solute | P7: Solute | S7: Solution
B8: MW(g/mol) | C8: m(g) | D8: Mol | E8: m(g) | F8: V(mL) | G8: Mol | H8: molality | I8: m(g) | J8: V(mL) | M8: MW(g/mol) | N8: m(g) | O8: Mol | P8: m(g) | Q8: V(mL) | R8: Mol | S8: molality | T8: m(g) | U8: V(mL)
A9: Info | D9: 1.5 | H9: 1 | M9: =IF(ISNUMBER(D3),D3,"") ->  | N9: =IF(ISNUMBER(C9),C9,"") ->  | O9: =IF(ISNUMBER(D9),D9,"") -> 1.5 | S9: 1
M10: =IF(ISNUMBER(M9),M9,IF(AND(ISNUMBER(O9),ISNUMBER(N9)),N9/O9,"")) ->  | N10: =IF(ISNUMBER(N9),N9,IF(AND(ISNUMBER(M9),ISNUMBER(O9)),M9*O9,"")) ->  | O10: =IF(ISNUMBER(O9),O9,IF(AND(ISNUMBER(N9),ISNUMBER(M9)),N9*M9,IF(AND(ISNUMBER(S9),ISNUMBER(P9)),S9*P9/1000,""))) -> 1.5 | P10: =IF(ISNUMBER(P9),P9,IF(AND(ISNUMBER(Q9),ISNUMBER($Q$6)),Q9*$Q$6,IF(AND(ISNUMBER(S9),ISNUMBER(O9)),O9/S9*1000,""))) -> 1500 | Q10: =IF(ISNUMBER(Q9),Q9,IF(AND(ISNUMBER(P9),ISNUMBER($Q$6)),P9/$Q$6,"")) -> 
